bitfinex/quotes_SOLUSD_20250717
["timestamp","ask_amount","ask_price","bid_price","bid_amount"]
[1752746709967,0.69,176.73,176.66,6.1398]
[1752746710284,8.30414238,176.72,176.66,14.44394238]
[1752746710583,8.30414238,176.72,176.66,40.44394238]
[1752746710785,8.30414238,176.72,176.58,5.66315551]
[1752746710786,8.30414238,176.69,176.58,5.66315551]
[1752746710964,12.49257574,176.68,176.59,0.68]
[1752746711168,12.49257574,176.66,176.61,12.49257574]
[1752746711394,12.49257574,176.66,176.61,0.68]
[1752746711587,30.84,176.68,176.61,0.68]
[1752746711771,0.69,176.67,176.58,6.34315551]
[1752746711964,12.49257574,176.65,176.58,6.34315551]
[1752746712193,30.84,176.68,176.62,12.49257574]
[1752746712367,30.84,176.68,176.63,0.68]
[1752746712570,12.49257574,176.66,176.61,12.49257574]
[1752746712882,12.49257574,176.64,176.58,0.68]
[1752746713066,12.49257574,176.63,176.58,0.68]
[1752746713268,12.49257574,176.62,176.58,0.68]
[1752746713593,0.69,176.65,176.58,0.68]
[1752746713594,12.49257574,176.63,176.58,0.68]
[1752746714291,12.49257574,176.65,176.59,13.17257574]
[1752746714598,13.18257574,176.66,176.6,12.49257574]
[1752746714891,30.84,176.68,176.62,12.49257574]
[1752746715095,30.84,176.68,176.64,12.49257574]
[1752746715278,44.02257574,176.68,176.63,38.49257574]
[1752746715474,12.49257574,176.67,176.63,26.0]
[1752746715672,30.84,176.68,176.63,38.49257574]
[1752746715875,30.84,176.68,176.64,13.17257574]
[1752746716073,43.33257574,176.68,176.63,26.0]
[1752746716278,12.49257574,176.65,176.61,0.03]
[1752746716480,12.49257574,176.64,176.61,0.03]
[1752746717177,12.49257574,176.66,176.61,0.03]
[1752746717900,12.49257574,176.63,176.61,0.03]
[1752746718489,0.69,176.63,176.61,0.03]
[1752746718794,13.18257574,176.62,176.61,0.03]
[1752746719001,5.66059096,176.66,176.61,0.03]
[1752746719301,13.18257574,176.63,176.61,0.03]
[1752746719896,12.49257574,176.62,176.61,0.03]
[1752746720101,29.96725971,176.62,176.61,0.03]
[1752746720305,16.78468397,176.61,176.51,13.17257574]
[1752746720597,12.49257574,176.57,176.51,13.17257574]
[1752746720900,12.49257574,176.57,176.52,5.66508044]
[1752746721198,12.49257574,176.56,176.51,5.66537906]
[1752746721381,12.49257574,176.56,176.51,18.1579548]
[1752746721581,12.49257574,176.56,176.51,6.34537906]
[1752746722189,0.69,176.58,176.51,5.66537906]
[1752746722391,12.49257574,176.57,176.52,0.68]
[1752746722590,12.49257574,176.56,176.52,26.68]
[1752746723317,12.49257574,176.55,176.49,13.17257574]
[1752746723482,12.49257574,176.54,176.48,12.49257574]
[1752746723811,12.49257574,176.55,176.49,38.49257574]
[1752746724014,0.69,176.57,176.49,38.49257574]
[1752746724015,0.69,176.57,176.5,0.68]
[1752746724217,12.49257574,176.58,176.53,5.66475953]
[1752746724502,30.84,176.59,176.53,5.66475953]
[1752746724503,30.84,176.59,176.54,13.17257574]
[1752746724713,30.84,176.59,176.55,0.68]
[1752746725077,12.49257574,176.62,176.53,19.82665835]
[1752746725277,20.60295431,176.68,176.46,12.49257574]
[1752746725278,26.0,176.58,176.46,12.49257574]
[1752746725479,12.49257574,176.53,176.47,0.68]
[1752746725677,12.49257574,176.51,176.45,0.68]
[1752746725880,12.49257574,176.51,176.45,13.17257574]
[1752746726090,17.47468397,176.56,176.45,13.17257574]
[1752746726091,12.49257574,176.5,176.46,26.0]
[1752746726385,12.49257574,176.51,176.45,13.17257574]
[1752746726581,12.49257574,176.46,176.43,0.1]
[1752746726801,12.49257574,176.46,176.43,26.1]
[1752746727001,0.69,176.48,176.43,0.1]
[1752746727200,12.49257574,176.45,176.43,0.1]
[1752746727407,0.69,176.47,176.43,0.1]
[1752746727721,12.49257574,176.5,176.44,13.17257574]
[1752746728086,31.2,176.53,176.44,26.68]
[1752746728380,6.35512892,176.52,176.44,32.34764135]
[1752746728704,12.49257574,176.5,176.44,44.84021709]
[1752746728905,12.49257574,176.45,176.43,0.1]
[1752746729282,13.18257574,176.44,176.43,0.1]
[1752746729477,12.49257574,176.44,176.43,0.1]
[1752746729702,12.49257574,176.46,176.43,0.1]
[1752746730110,0.69,176.5,176.43,5.76792704]
[1752746730307,44.44257574,176.5,176.44,12.49257574]
[1752746730519,12.49257574,176.49,176.43,13.27257574]
[1752746730921,12.49257574,176.46,176.43,0.1]
[1752746731428,0.69,176.46,176.43,0.1]
[1752746731642,0.69,176.48,176.43,5.7677895]
[1752746731936,12.49257574,176.49,176.43,18.94036524]
[1752746732107,12.49257574,176.48,176.43,5.7677895]
[1752746732306,12.49257574,176.48,176.43,0.1]
[1752746732307,13.18257574,176.47,176.43,0.1]
[1752746733227,0.69,176.47,176.43,0.1]
[1752746733398,13.18257574,176.47,176.43,0.1]
[1752746733600,13.18257574,176.46,176.43,0.1]
[1752746734692,6.3560434,176.49,176.43,0.1]
[1752746734893,12.49257574,176.47,176.43,0.1]
[1752746735097,12.49257574,176.47,176.43,5.76789864]
[1752746735304,43.71257574,176.48,176.43,12.59257574]
[1752746735510,44.40257574,176.48,176.43,12.59257574]
[1752746735906,44.40257574,176.48,176.43,18.26050874]
[1752746736104,44.40257574,176.48,176.43,12.59257574]
[1752746736299,44.40257574,176.48,176.43,0.1]
[1752746736497,44.40257574,176.48,176.43,12.59257574]
[1752746736715,31.22,176.48,176.45,12.49257574]
[1752746736921,31.22,176.48,176.43,5.76786885]
[1752746737096,40.3152141,176.48,176.43,14.17308295]
[1752746737296,31.91,176.48,176.44,8.4052141]
[1752746738131,31.22,176.48,176.43,5.76786885]
[1752746738429,0.69,176.47,176.43,14.17315197]
[1752746739128,0.69,176.47,176.43,0.1]
[1752746739426,0.69,176.47,176.43,8.5052141]
[1752746739617,0.69,176.47,176.43,14.17317079]
[1752746740131,0.69,176.47,176.43,8.5052141]
[1752746740713,0.69,176.47,176.43,0.1]
[1752746741030,39.6252141,176.48,176.44,8.4052141]
[1752746741031,31.22,176.48,176.44,8.4052141]
[1752746741215,45.29162744,176.48,176.43,0.1]
[1752746741418,9.1052141,176.47,176.43,0.1]
[1752746741618,8.4052141,176.46,176.43,0.1]
[1752746741923,0.7,176.47,176.43,14.17313472]
[1752746742118,0.7,176.47,176.43,8.5052141]
[1752746742322,45.2916713,176.48,176.43,8.5052141]
[1752746742323,0.7,176.46,176.43,0.1]
[1752746742518,8.4052141,176.47,176.43,0.1]
[1752746742834,9.1052141,176.47,176.43,0.1]
[1752746743016,0.7,176.46,176.43,0.1]
[1752746743224,0.7,176.45,176.43,0.1]
[1752746745431,0.7,176.47,176.43,5.76794821]
[1752746745742,0.7,176.46,176.43,0.1]
[1752746746135,0.7,176.45,176.43,0.1]
[1752746746335,36.88636652,176.48,176.43,0.1]
[1752746746536,14.07286315,176.44,176.43,0.1]
[1752746746733,31.0,176.44,176.43,0.1]
[1752746746928,31.7,176.44,176.43,0.1]
[1752746748031,31.0,176.44,176.43,0.1]
[1752746748540,0.7,176.46,176.43,0.1]
[1752746748846,0.7,176.46,176.43,14.88313682]
[1752746748847,31.0,176.46,176.43,14.88313682]
[1752746749045,9.1052141,176.45,176.43,0.1]
[1752746749555,9.1052141,176.44,176.43,0.1]
[1752746750058,0.7,176.44,176.43,0.1]
[1752746750220,9.1052141,176.44,176.43,0.1]
[1752746750423,31.0,176.46,176.43,0.1]
[1752746750635,31.0,176.45,176.43,0.1]
[1752746750819,31.7,176.45,176.43,0.1]
[1752746751022,0.7,176.44,176.43,0.1]
[1752746751742,9.1052141,176.44,176.43,0.1]
[1752746751950,0.7,176.44,176.43,0.1]
[1752746752118,9.1052141,176.44,176.43,0.1]
[1752746752321,25.88989807,176.44,176.43,0.1]
[1752746752524,31.55754712,176.44,176.43,0.1]
[1752746753929,45.77286315,176.44,176.43,0.1]
[1752746757447,9.1052141,176.44,176.43,0.1]
[1752746757660,40.0852141,176.44,176.43,0.1]
[1752746757964,45.75286315,176.44,176.43,0.1]
[1752746759737,37.34764905,176.44,176.43,0.1]
[1752746760152,45.75286315,176.44,176.43,0.1]
[1752746760854,62.53754712,176.44,176.43,0.1]
[1752746761456,16.78468397,176.43,176.36,8.58131957]
[1752746761755,8.4052141,176.37,176.36,8.58131957]
[1752746761929,56.80989807,176.37,176.36,8.58131957]
[1752746762124,56.80989807,176.37,176.36,1e-08]
[1752746762329,26.0,176.35,176.25,7.16]
[1752746762531,16.78468397,176.33,176.25,7.16]
[1752746762729,16.78468397,176.3,176.25,7.16]
[1752746762934,8.4052141,176.26,176.25,7.16]
[1752746763158,16.78468397,176.3,176.25,7.87]
[1752746763357,30.96,176.29,176.26,0.71]
[1752746763560,39.3652141,176.29,176.25,0.71]
[1752746763741,8.4052141,176.28,176.22,9.1152141]
[1752746763939,8.4052141,176.24,176.23,1.06]
[1752746764135,39.3652141,176.24,176.23,1.06]
[1752746764337,40.0652141,176.24,176.23,1.06]
[1752746764532,40.0652141,176.24,176.17,0.71]
[1752746764746,31.66,176.24,176.17,0.71]
[1752746764959,0.7,176.29,176.2,34.4052141]
[1752746765160,0.7,176.32,176.25,8.4052141]
[1752746765357,5.6708631,176.34,176.28,8.4052141]
[1752746765663,31.04,176.33,176.28,8.4052141]
[1752746765869,31.04,176.33,176.29,8.4052141]
[1752746766036,16.78468397,176.29,176.24,0.71]
[1752746766235,8.4052141,176.25,176.2,8.8465]
[1752746766440,8.4052141,176.25,176.18,9.4652141]
[1752746766441,8.4052141,176.23,176.18,1.06]
[1752746766637,32.3057,176.31,176.22,8.4052141]
[1752746766638,8.4052141,176.28,176.22,8.4052141]
[1752746766846,0.7,176.34,176.26,8.4052141]
[1752746767062,5.67050235,176.36,176.29,8.4052141]
[1752746767372,8.4052141,176.34,176.29,0.71]
[1752746768299,0.7,176.33,176.26,7.2637]
[1752746768457,8.4052141,176.31,176.26,7.2637]
[1752746768771,31.14,176.32,176.27,0.71]
[1752746768973,0.7,176.31,176.19,6.1173]
[1752746769379,31.22,176.3,176.23,8.4052141]
[1752746769578,39.6252141,176.3,176.24,0.71]
[1752746769887,39.6252141,176.3,176.24,9.1152141]
[1752746770092,39.6252141,176.3,176.22,26.0]
[1752746770093,31.22,176.3,176.26,8.4052141]
[1752746770297,31.22,176.3,176.27,0.71]
[1752746770464,31.22,176.3,176.28,0.71]
[1752746770793,31.22,176.3,176.26,0.71]
[1752746770961,31.22,176.3,176.27,0.69]
[1752746771471,31.22,176.3,176.28,0.69]
[1752746771658,31.22,176.3,176.27,8.4052141]
[1752746771858,31.22,176.3,176.29,0.69]
[1752746772173,8.4052141,176.32,176.29,0.69]
[1752746772474,31.18,176.33,176.27,5.67303702]
[1752746772676,8.4052141,176.32,176.27,5.67303702]
[1752746772874,8.4052141,176.31,176.28,0.69]
[1752746773187,31.16,176.3,176.25,0.69]
[1752746773385,8.4052141,176.28,176.26,7.88]
[1752746773571,8.4052141,176.28,176.25,0.69]
[1752746773774,8.4052141,176.29,176.25,0.69]
[1752746774081,8.4052141,176.29,176.26,0.69]
[1752746774460,8.4052141,176.29,176.24,40.07907535]
[1752746774679,31.16,176.3,176.27,0.69]
[1752746774879,39.5652141,176.3,176.27,0.69]
[1752746775463,39.5652141,176.3,176.25,0.69]
[1752746775664,31.87,176.3,176.25,9.0952141]
[1752746775971,8.4052141,176.29,176.24,26.0]
[1752746776176,39.5652141,176.3,176.25,0.69]
[1752746776380,31.16,176.3,176.26,0.69]
[1752746776584,8.4052141,176.31,176.24,31.67403991]
[1752746776585,0.71,176.36,176.27,9.0952141]
[1752746776761,8.4052141,176.37,176.31,8.4052141]
[1752746776960,0.71,176.42,176.32,0.69]
[1752746777163,5.66771075,176.44,176.39,8.4052141]
[1752746777364,5.66771075,176.44,176.29,18.39238397]
[1752746777365,31.14,176.41,176.37,0.69]
[1752746777578,31.14,176.41,176.39,8.4052141]
[1752746778665,31.14,176.41,176.4,9.0952141]
[1752746779772,31.14,176.41,176.37,6.7977]
[1752746779966,31.14,176.41,176.39,8.4052141]
[1752746780188,31.2,176.41,176.39,0.69]
[1752746780468,31.2,176.41,176.4,8.4052141]
[1752746780680,31.2,176.41,176.37,6.1077]
[1752746780885,45.27409563,176.41,176.34,0.69]
[1752746781094,45.98409563,176.41,176.35,8.4052141]
[1752746781396,37.57888153,176.41,176.36,8.4052141]
[1752746781568,37.57888153,176.41,176.36,9.0952141]
[1752746782173,36.86888153,176.41,176.37,9.0952141]
[1752746782892,8.4052141,176.39,176.33,6.7977]
[1752746783195,0.71,176.4,176.31,0.69]
[1752746783196,8.4052141,176.36,176.31,0.69]
[1752746783367,39.4852141,176.35,176.32,0.38]
[1752746783695,39.4852141,176.35,176.29,16.8830141]
[1752746783696,31.08,176.35,176.3,8.4052141]
[1752746783874,39.4852141,176.35,176.3,0.69]
[1752746784076,5.6708631,176.34,176.29,16.1930141]
[1752746784393,9.1152141,176.33,176.27,9.1252141]
[1752746784573,39.4652141,176.32,176.28,7.53]
[1752746784777,31.06,176.32,176.3,8.4052141]
[1752746784981,31.06,176.32,176.31,0.69]
[1752746785293,31.06,176.32,176.31,9.0952141]
[1752746785498,31.06,176.32,176.28,7.53]
[1752746785668,31.06,176.32,176.28,8.22]
[1752746786068,5.67182803,176.31,176.28,8.22]
[1752746786385,14.78704213,176.31,176.28,7.53]
[1752746786599,5.67182803,176.31,176.28,16.6252141]
[1752746786894,5.67182803,176.31,176.28,8.22]
[1752746787587,5.67182803,176.31,176.28,0.69]
[1752746787898,9.1152141,176.3,176.24,34.7005256]
[1752746788079,5.67279328,176.28,176.25,7.53]
[1752746788265,5.67238046,176.3,176.26,9.0952141]
[1752746788469,31.04,176.29,176.27,9.0952141]
[1752746788772,31.04,176.29,176.25,7.53]
[1752746788981,31.04,176.29,176.26,9.0952141]
[1752746789994,31.04,176.29,176.27,8.5952141]
[1752746790387,36.712482,176.29,176.27,0.69]
[1752746790576,36.712482,176.29,176.26,8.4052141]
[1752746790897,36.712482,176.29,176.24,26.69]
[1752746791070,36.712482,176.29,176.25,8.4052141]
[1752746791267,45.1176961,176.29,176.24,34.4052141]
[1752746791470,45.1176961,176.29,176.25,0.69]
[1752746791471,5.672482,176.29,176.25,0.69]
[1752746791696,31.0,176.28,176.26,9.0952141]
[1752746791883,31.0,176.28,176.25,8.4052141]
[1752746792087,45.78819384,176.28,176.22,0.69]
[1752746792277,0.71,176.27,176.22,0.69]
[1752746792597,9.1152141,176.27,176.22,0.69]
[1752746792901,36.67297974,176.28,176.24,8.4052141]
[1752746793076,36.67297974,176.28,176.24,9.0952141]
[1752746793273,0.71,176.33,176.25,0.69]
[1752746793578,39.4052141,176.32,176.27,8.4052141]
[1752746793786,36.67150635,176.32,176.28,9.0952141]
[1752746794887,8.4052141,176.36,176.3,8.4052141]
[1752746795196,5.66925562,176.39,176.35,8.4052141]
[1752746795394,30.98,176.38,176.35,0.69]
[1752746795595,30.98,176.38,176.35,9.0952141]
[1752746796092,36.64964206,176.38,176.35,0.69]
[1752746796266,36.64964206,176.38,176.34,8.4052141]
[1752746796468,36.64964206,176.38,176.34,9.0952141]
[1752746796673,30.98,176.38,176.35,8.4052141]
[1752746796903,0.06,176.41,176.37,8.4052141]
[1752746797074,30.98,176.4,176.39,8.4052141]
[1752746797276,30.98,176.4,176.39,9.0952141]
[1752746797490,0.06,176.41,176.39,9.0952141]
[1752746797800,31.02,176.41,176.39,9.0952141]
[1752746798176,31.02,176.41,176.4,9.0952141]
[1752746798377,0.06,176.41,176.4,9.0952141]
[1752746799694,39.4052141,176.41,176.36,6.4866]
[1752746799892,8.4052141,176.4,176.34,0.69]
[1752746800090,8.4052141,176.38,176.33,8.4052141]
[1752746800299,45.7451126,176.37,176.32,6.4866]
[1752746800502,37.3398985,176.37,176.31,0.69]
[1752746800704,45.7451126,176.37,176.32,8.4052141]
[1752746800902,36.6298985,176.37,176.33,0.69]
[1752746801587,45.0351126,176.37,176.33,0.69]
[1752746802192,45.0351126,176.37,176.31,5.67178921]
[1752746802193,8.4052141,176.36,176.31,34.4052141]
[1752746802693,8.4052141,176.36,176.31,9.0852141]
[1752746803005,8.4052141,176.34,176.29,9.9338141]
[1752746803184,8.4052141,176.34,176.28,41.5718141]
[1752746803185,30.92,176.33,176.28,41.5718141]
[1752746803378,30.92,176.33,176.28,15.5718141]
[1752746803584,30.92,176.33,176.29,9.0852141]
[1752746803805,30.92,176.33,176.3,0.68]
[1752746804008,19.90464477,176.37,176.31,8.4052141]
[1752746804009,30.92,176.34,176.31,8.4052141]
[1752746804388,30.92,176.34,176.3,9.0852141]
[1752746804683,30.92,176.34,176.31,0.68]
[1752746805108,9.0652141,176.33,176.28,6.4866]
[1752746805296,9.0652141,176.33,176.28,7.1666]
[1752746805297,8.4052141,176.33,176.28,7.1666]
[1752746805482,8.4052141,176.29,176.22,14.07985342]
[1752746805684,8.4052141,176.26,176.19,12.14324696]
[1752746805878,30.92,176.25,176.19,6.4676]
[1752746806207,14.07929489,176.24,176.19,6.4676]
[1752746806597,14.07929489,176.24,176.2,0.71]
[1752746806801,36.59382788,176.25,176.2,0.68]
[1752746807006,30.92,176.24,176.2,9.0852141]
[1752746807303,39.3252141,176.24,176.2,0.68]
[1752746807604,1.6274,176.32,176.23,8.4052141]
[1752746807790,5.67182803,176.31,176.22,26.0]
[1752746808105,0.66,176.32,176.26,8.4052141]
[1752746808307,8.4052141,176.28,176.2,5.67510215]
[1752746808510,8.4052141,176.27,176.22,8.4052141]
[1752746808683,8.4052141,176.27,176.22,0.68]
[1752746809083,39.3452141,176.27,176.22,0.68]
[1752746809291,8.4052141,176.25,176.19,7.1476]
[1752746809502,8.4052141,176.25,176.19,33.1476]
[1752746809703,9.0652141,176.24,176.19,26.0]
[1752746809899,8.4052141,176.22,176.17,8.4052141]
[1752746810101,9.0652141,176.22,176.17,8.4052141]
[1752746810286,8.4052141,176.2,176.14,7.1476]
[1752746810492,9.0652141,176.24,176.18,15.6252141]
[1752746810789,8.4052141,176.26,176.19,0.68]
[1752746810982,30.98,176.25,176.19,0.68]
[1752746811226,8.4052141,176.23,176.18,7.22]
[1752746811383,9.0652141,176.23,176.18,7.22]
[1752746811590,40.0452141,176.25,176.19,9.0852141]
[1752746811885,8.4052141,176.24,176.18,8.4052141]
[1752746812087,8.4052141,176.22,176.16,0.68]
[1752746812302,8.4052141,176.18,176.12,0.68]
[1752746812527,8.4052141,176.16,176.09,0.78]
[1752746812816,9.0652141,176.16,176.1,8.4052141]
[1752746813025,30.98,176.17,176.11,8.4052141]
[1752746813327,30.98,176.17,176.13,8.4052141]
[1752746813826,30.98,176.17,176.12,7.22]
[1752746813998,8.4052141,176.13,176.12,7.22]
[1752746814198,14.74283858,176.13,176.09,0.1]
[1752746814402,8.4052141,176.11,176.09,0.1]
[1752746814634,8.4052141,176.1,176.09,0.1]
[1752746814845,1.5463,176.1,176.04,7.22]
[1752746815126,8.4052141,176.05,175.93,0.68]
[1752746815441,26.0,176.08,175.88,37.3936]
[1752746815442,8.4052141,175.94,175.88,6.1936]
[1752746815635,0.66,175.96,175.88,14.5988141]
[1752746815939,0.66,175.96,175.89,8.4052141]
[1752746816116,9.0652141,175.96,175.9,8.4052141]
[1752746816448,5.68198989,176.0,175.95,8.4052141]
[1752746816615,31.92,176.02,175.96,0.68]
[1752746816800,31.92,176.02,175.88,11.87926699]
[1752746817002,31.92,176.02,175.95,0.68]
[1752746817210,12.58639238,176.0,175.95,0.68]
[1752746817436,0.66,176.03,175.96,0.68]
[1752746817901,31.96,176.04,176.0,12.58639238]
[1752746818100,0.66,176.06,176.01,12.58639238]
[1752746818301,44.58639238,176.08,176.02,12.58639238]
[1752746818612,12.58639238,176.07,176.01,12.58639238]
[1752746818810,12.58639238,176.07,176.0,6.36181317]
[1752746819015,12.58639238,176.07,176.01,12.58639238]
[1752746819613,12.58639238,176.06,176.0,13.26639238]
[1752746819922,12.58639238,176.02,175.94,0.68]
[1752746820123,0.66,176.05,175.94,0.68]
[1752746820124,12.58639238,176.01,175.95,38.58639238]
[1752746820306,12.58639238,175.99,175.91,6.3647061]
[1752746820512,6.34181818,176.0,175.94,12.58639238]
[1752746820729,26.0,176.08,175.99,12.58639238]
[1752746820730,5.67988185,176.06,175.99,12.58639238]
[1752746820905,5.67988185,176.06,175.96,0.68]
[1752746821229,32.66,176.08,176.04,12.58639238]
[1752746821420,6.2348,176.18,176.07,12.58639238]
[1752746821421,0.66,176.14,176.07,12.58639238]
[1752746821626,13.24639238,176.14,176.05,0.68]
[1752746821827,12.58639238,176.13,176.07,12.58639238]
[1752746821999,12.58639238,176.09,176.03,12.58639238]
[1752746822199,13.24639238,176.09,176.01,32.7135]
[1752746822395,18.92540129,176.09,176.03,12.58639238]
[1752746822817,6.33900891,176.09,176.03,12.58639238]
[1752746823026,12.58639238,176.05,175.98,0.68]
[1752746823327,12.58639238,176.05,175.99,12.58639238]
[1752746823528,12.58639238,176.04,175.98,12.58639238]
[1752746823766,0.66,176.04,175.99,12.58639238]
[1752746823942,32.64,176.07,175.97,0.68]
[1752746824106,12.58639238,176.06,176.0,12.58639238]
[1752746824310,18.26646525,176.06,176.0,12.58639238]
[1752746824708,16.78468397,176.1,176.04,12.58639238]
[1752746824709,0.66,176.1,176.04,12.58639238]
[1752746825007,32.64,176.13,176.08,12.58639238]
[1752746825212,18.33848397,176.17,175.99,37.66214103]
[1752746825213,18.92319678,176.16,176.1,12.58639238]
[1752746825509,12.58639238,176.14,176.09,12.58639238]
[1752746825726,0.66,176.13,176.08,12.58639238]
[1752746825927,0.66,176.13,176.09,12.58639238]
[1752746826105,18.92319678,176.16,176.1,12.58639238]
[1752746826311,0.66,176.16,176.11,12.58639238]
[1752746826512,31.98,176.17,176.13,12.58639238]
[1752746826816,32.64,176.17,176.11,0.68]
[1752746827022,32.64,176.17,176.12,12.58639238]
[1752746827229,32.64,176.17,176.13,12.58639238]
[1752746827230,31.98,176.17,176.13,12.58639238]
[1752746827621,31.98,176.17,176.12,0.68]
[1752746827821,31.98,176.17,176.14,12.58639238]
[1752746828025,31.98,176.17,176.12,0.68]
[1752746828227,31.98,176.17,176.14,12.58639238]
[1752746828913,37.6563486,176.17,176.13,12.58639238]
[1752746829242,31.98,176.17,176.13,12.58639238]
[1752746829932,31.98,176.17,176.14,0.68]
[1752746830110,0.66,176.2,176.15,12.58639238]
[1752746830315,31.92,176.21,176.18,12.58639238]
[1752746831123,12.58639238,176.25,176.19,12.58639238]
[1752746831439,5.67359987,176.26,176.21,12.58639238]
[1752746831618,18.25999225,176.26,176.21,12.58639238]
[1752746831819,18.95999225,176.26,176.21,12.58639238]
[1752746832042,50.15956552,176.27,176.22,12.58639238]
[1752746832231,44.48639238,176.27,176.22,12.58639238]
[1752746832418,31.9,176.27,176.25,12.58639238]
[1752746832613,12.58639238,176.32,176.26,12.58639238]
[1752746832831,32.6,176.33,176.29,12.58639238]
[1752746833714,38.27118471,176.33,176.29,12.58639238]
[1752746834034,31.9,176.33,176.29,12.58639238]
[1752746834241,31.9,176.33,176.31,12.58639238]
[1752746834419,0.06,176.34,176.32,12.58639238]
[1752746834621,0.06,176.34,176.33,12.58639238]
[1752746836043,0.06,176.34,176.33,18.25757709]
[1752746836335,0.06,176.34,176.33,18.93757709]
[1752746838015,0.06,176.34,176.33,44.93757709]
[1752746838416,0.06,176.34,176.33,93.48226106]
[1752746838725,0.06,176.37,176.36,26.0]
[1752746838928,0.06,176.37,176.36,38.58639238]
[1752746839236,0.06,176.37,176.36,39.26639238]
[1752746839619,0.06,176.37,176.36,13.26639238]
[1752746840135,0.06,176.37,176.36,18.93661238]
[1752746840542,0.06,176.37,176.36,0.68]
[1752746840746,0.06,176.37,176.36,39.26639238]
[1752746840944,0.06,176.37,176.36,44.93661238]
[1752746842735,0.06,176.37,176.36,63.25609635]
[1752746843321,0.06,176.41,176.4,26.0]
[1752746843518,0.06,176.41,176.4,70.24639238]
[1752746843717,0.06,176.41,176.4,70.92639238]
[1752746843950,1e-08,176.41,176.4,100.29746873]
[1752746844251,1e-08,176.41,176.4,105.96640297]
[1752746844436,0.2,176.52,176.4,126.41673857]
[1752746844639,0.2,176.52,176.5,12.58639238]
[1752746845151,0.2,176.52,176.49,12.58639238]
[1752746845451,0.2,176.52,176.5,12.58639238]
[1752746845629,0.2,176.52,176.49,12.58639238]
[1752746845949,0.2,176.52,176.51,12.58639238]
[1752746846651,0.2,176.52,176.5,12.58639238]
[1752746847017,0.2,176.52,176.51,12.58639238]
[1752746847424,0.2,176.52,176.48,0.68]
[1752746847844,0.2,176.52,176.46,5.66695267]
[1752746847845,6.5651274,176.52,176.47,26.0]
[1752746848053,0.2,176.52,176.47,26.68]
[1752746848241,0.2,176.52,176.49,12.58639238]
[1752746848443,0.2,176.52,176.5,12.58639238]
[1752746848778,0.2,176.52,176.51,12.58639238]
[1752746848932,0.2,176.52,176.48,26.68]
[1752746849265,0.2,176.52,176.51,12.58639238]
[1752746850475,0.2,176.52,176.51,18.25179377]
[1752746850775,0.2,176.52,176.51,12.58639238]
[1752746851579,0.2,176.52,176.51,18.93179377]
[1752746852280,0.2,176.52,176.51,68.01007774]
[1752746852866,0.2,176.52,176.51,42.01007774]
[1752746853171,0.2,176.52,176.51,73.45007774]
[1752746853368,0.2,176.52,176.51,0.68]
[1752746853574,0.2,176.52,176.5,38.58639238]
[1752746853879,0.2,176.52,176.51,12.58639238]
[1752746854174,0.2,176.52,176.51,13.26639238]
[1752746854394,0.2,176.52,176.51,18.93179377]
[1752746855369,0.2,176.52,176.51,12.58639238]
[1752746856378,0.2,176.52,176.43,0.68]
[1752746856379,0.9,176.52,176.43,0.68]
[1752746856590,0.9,176.52,176.46,12.58639238]
[1752746856759,12.58639238,176.51,176.46,38.58639238]
[1752746856960,8.40360776,176.51,176.46,34.40360776]
[1752746857165,8.40360776,176.51,176.43,0.68]
[1752746857166,0.7,176.5,176.43,0.68]
[1752746857371,8.40360776,176.48,176.42,8.40360776]
[1752746857672,8.40360776,176.46,176.41,8.40360776]
[1752746857877,0.7,176.48,176.43,8.40360776]
[1752746858246,0.7,176.48,176.42,0.68]